lending/lending_fUSD_20241007
["ID","MTS","AMOUNT","RATE_DAILY","PERIOD"]
[339991167,1728289846826,-500.0,0.00035879,2]
[339991168,1728289846835,-500.0,0.00035879,2]
[339991169,1728289846847,-500.0,0.00035879,2]
[339991170,1728289846856,-500.0,0.00035879,2]
[339991171,1728289846866,-500.0,0.00035879,2]
[339991172,1728289846875,-500.0,0.00035879,2]
[339991173,1728289846885,-500.0,0.00035879,2]
[339991174,1728289846895,-503.91,0.00035879,2]
[339991175,1728289846905,-532.61,0.00035879,2]
[339991176,1728289846915,-586.28094623,0.00035879,2]
[339991177,1728289846924,-176.22174995,0.00035888,2]
[339991178,1728289846934,-500.0,0.00035888,2]
[339991179,1728289846943,-701.05,0.00035888,2]
[339991180,1728289846953,-647.67,0.00035888,2]
[339991181,1728289846962,-719.65,0.00035888,2]
[339991182,1728289846973,-510.01,0.00035888,2]
[339991183,1728289846982,-500.0,0.00035888,2]
[339991184,1728289846991,-500.0,0.00035888,2]
[339991185,1728289847001,-500.0,0.00035888,2]
[339991186,1728289847013,-500.0,0.00035888,2]
[339991187,1728289847023,-665.18,0.00035888,2]
[339991188,1728289847033,-500.0,0.00035888,2]
[339991189,1728289847042,-684.28,0.00035888,2]
[339991190,1728289847051,-161.43558761,0.00035888,2]
[339991191,1728289847061,-776.95,0.00035888,2]
[339991192,1728289847071,-588.5,0.00035888,2]
[339991193,1728289847080,-183.8636305,0.00035888,2]
[339991194,1728289847089,-233.25727466,0.00035888,2]
[339991195,1728289847099,-500.0,0.00035888,2]
[339991196,1728289847109,-613.11,0.00035888,2]
[339991197,1728289847119,-744.03,0.00035888,2]
[339991198,1728289847129,-664.43,0.00035888,2]
[339991199,1728289847138,-500.0,0.00035889,2]
[339991200,1728289847148,-1059.7,0.00035889,2]
[339991201,1728289847158,-3063.93,0.00035889,2]
[339991202,1728289847169,-150.0,0.00035889,2]
[339991203,1728289847179,-500.0,0.00035889,2]
[339991204,1728289847188,-765.89,0.00035889,2]
[339991205,1728289847198,-500.0,0.00035889,2]
[339991206,1728289847208,-500.0,0.00035889,2]
[339991207,1728289847217,-500.0,0.00035889,2]
[339991208,1728289847227,-1162.29,0.00035889,2]
[339991209,1728289847236,-500.0,0.00035889,2]
[339991210,1728289847246,-500.0,0.00035889,2]
[339991211,1728289847255,-500.0,0.00035889,2]
[339991212,1728289847265,-522.74,0.00035889,2]
[339991213,1728289847275,-500.0,0.00035889,2]
[339991214,1728289847284,-500.0,0.00035889,2]
[339991215,1728289847294,-288.20556191,0.00035889,2]
[339991216,1728289847303,-724.72,0.00035889,2]
[339991217,1728289847312,-178.54703289,0.00035889,2]
[339991218,1728289847321,-590.34,0.00035889,2]
[339991219,1728289847330,-500.0,0.00035889,2]
[339991220,1728289847340,-543.83,0.00035889,2]
[339991221,1728289847350,-1754.61,0.00035889,2]
[339991222,1728289847360,-500.0,0.00035889,2]
[339991223,1728289847371,-500.0,0.00035889,2]
[339991224,1728289847380,-500.0,0.00035889,2]
[339991225,1728289847389,-221.99925989,0.00035889,2]
[339991226,1728289847399,-500.0,0.00035889,2]
[339991227,1728289847408,-500.0,0.00035889,2]
[339991228,1728289847417,-663.74,0.00035889,2]
[339991229,1728289847426,-500.0,0.00035889,2]
[339991230,1728289847435,-678.45,0.00035889,2]
[339991231,1728289847445,-372.76252223,0.00035889,2]
[339991232,1728289847454,-381.44677686,0.00035889,2]
[339991233,1728289847463,-765.89,0.00035889,2]
[339991234,1728289847472,-635.42,0.00035889,2]
[339991235,1728289847481,-1136.61,0.00035889,2]
[339991236,1728289847491,-805.38,0.00035889,2]
[339991237,1728289847500,-1044.58,0.00035889,2]
[339991238,1728289847509,-1063.41,0.00035889,2]
[339991239,1728289847518,-500.0,0.00035889,2]
[339991240,1728289847528,-162.00921335,0.0003589,2]
[339991241,1728289847537,-500.0,0.0003589,2]
[339991242,1728289847546,-500.0,0.0003589,2]
[339991243,1728289847556,-500.0,0.0003589,2]
[339991244,1728289847565,-500.0,0.0003589,2]
[339991245,1728289847574,-500.0,0.0003589,2]
[339991246,1728289847583,-7500.0,0.000359,2]
[339991247,1728289847593,-866.2078061,0.000359,8]
[339991248,1728289847602,-1200.0,0.000359,13]
[339991249,1728289847611,-455.89585042,0.000359,2]
[339991250,1728289847621,-500.0,0.00035973,2]
[339991251,1728289847630,-30017.9557949,0.0003599,6]
[339991252,1728289847639,-250.0,0.00035999,2]
[339991253,1728289847648,-500.0,0.00035999,2]
[339991254,1728289847658,-727.93,0.00035999,2]
[339991255,1728289847668,-500.0,0.00035999,2]
[339991256,1728289847677,-50000.0,0.00036,26]
[339991257,1728289847687,-50000.0,0.00036,36]
[339991258,1728289847697,-2000.0,0.00036,120]
[339991259,1728289847706,-533.80810222,0.00036,120]
[339991260,1728289847716,-160.0,0.0003609,2]
[339991261,1728289847725,-429.07,0.00036127,2]
[339991262,1728289847734,-161.88,0.00036127,2]
[339991263,1728289847744,-7504.48894872,0.00036142,6]
[339991264,1728289847753,-7504.48894872,0.00036143,6]
[339991265,1728289847763,-500.0,0.00036152,2]
[339991266,1728289847774,-500.0,0.00036152,2]
[339991267,1728289847783,-173.11981708,0.00036152,2]
[339991268,1728289847793,-822.37,0.00036152,2]
[339991269,1728289847805,-859.49,0.00036152,2]
[339991270,1728289847815,-658.6,0.00036152,2]
[339991271,1728289847825,-795.73,0.00036152,2]
[339991272,1728289847834,-1424.68,0.00036152,7]
[339991273,1728289847844,-500.0,0.00036152,2]
[339991274,1728289847853,-700.08,0.00036152,2]
[339991275,1728289847862,-555.88,0.00036152,2]
[339991276,1728289847872,-671.84,0.00036152,2]
[339991277,1728289847881,-697.74,0.00036152,2]
[339991278,1728289847891,-360.02483813,0.00036152,15]
[339991279,1728289847901,-779.5,0.00036152,2]
[339991280,1728289847911,-500.0,0.00036152,2]
[339991281,1728289847920,-500.0,0.00036153,2]
[339991282,1728289847929,-518.03,0.00036153,2]
[339991283,1728289847939,-984.26,0.00036153,2]
[339991284,1728289847948,-790.45,0.00036153,2]
[339991285,1728289847958,-500.0,0.00036153,2]
[339991286,1728289847968,-500.0,0.00036153,2]
[339991287,1728289847977,-500.0,0.00036153,2]
[339991288,1728289847987,-385.1705802,0.00036153,2]
[339991289,1728289847997,-285.50341389,0.00036153,2]
[339991290,1728289848006,-500.0,0.00036153,2]
[339991291,1728289848016,-173.8133735,0.00036153,2]
[339991292,1728289848026,-500.0,0.00036153,2]
[339991293,1728289848037,-150.24407961,0.00036153,2]
[339991294,1728289848047,-500.0,0.00036153,2]
[339991295,1728289848057,-500.0,0.00036153,2]
[339991296,1728289848066,-500.0,0.00036153,2]
[339991297,1728289848076,-183.19195479,0.00036153,2]
[339991298,1728289848085,-1697.07,0.00036153,2]
[339991299,1728289848095,-799.82,0.00036153,2]
[339991300,1728289848105,-471.29650317,0.00036153,2]
[339991301,1728289848121,-28.70349683,0.00036153,2]
[339991302,1728289848131,-500.0,0.00036153,2]
[339991303,1728289848141,-500.0,0.00036153,2]
[339991304,1728289848151,-754.09,0.00036153,2]
[339991305,1728289848161,-500.0,0.00036153,2]
[339991306,1728289848171,-215.19408129,0.00036153,2]
[339991307,1728289848180,-515.41,0.00036153,2]
[339991308,1728289848191,-500.0,0.00036153,2]
[339991309,1728289848201,-500.0,0.00036153,2]
[339991310,1728289848210,-500.0,0.00036153,2]
[339991311,1728289848220,-500.0,0.00036153,2]
[339991312,1728289848230,-627.51,0.00036153,2]
[339991313,1728289848240,-500.0,0.00036153,2]
[339991314,1728289848250,-500.0,0.00036153,2]
[339991315,1728289848260,-500.0,0.00036153,2]
[339991316,1728289848270,-500.0,0.00036153,2]
[339991317,1728289848280,-500.0,0.00036153,2]
[339991318,1728289848289,-230.12492948,0.00036153,2]
[339991319,1728289848299,-500.0,0.00036153,2]
[339991320,1728289848411,-503.91,0.00036153,2]
[339991321,1728289848422,-532.61,0.00036153,2]
[339991322,1728289848431,-15008.9778974,0.00036153,6]
[339991323,1728289848442,-500.0,0.00036162,2]
[339991324,1728289848451,-701.05,0.00036162,2]
[339991325,1728289848461,-647.67,0.00036162,2]
[339991326,1728289848471,-719.65,0.00036162,2]
[339991327,1728289848479,-510.01,0.00036162,2]
[339991328,1728289848489,-500.0,0.00036162,2]
[339991329,1728289848499,-500.0,0.00036162,2]
[339991330,1728289848508,-500.0,0.00036162,2]
[339991331,1728289848519,-590.95173127,0.00036162,2]
[339991332,1728289848528,-665.18,0.00036162,2]
[339991333,1728289848538,-500.0,0.00036162,2]
[339991334,1728289848547,-684.28,0.00036162,2]
[339991335,1728289848557,-776.95,0.00036162,2]
[339991336,1728289848567,-588.5,0.00036162,2]
[339991337,1728289848577,-500.0,0.00036162,2]
[339991338,1728289848588,-613.11,0.00036162,2]
[339991339,1728289848597,-744.03,0.00036162,2]
[339991340,1728289848607,-664.43,0.00036162,2]
[339991341,1728289848617,-500.0,0.00036163,2]
[339991342,1728289848627,-1059.7,0.00036163,2]
[339991343,1728289848637,-3063.93,0.00036163,2]
[339991344,1728289848647,-150.0,0.00036163,2]
[339991345,1728289848657,-500.0,0.00036163,2]
[339991346,1728289848666,-765.89,0.00036163,2]
[339991347,1728289848676,-500.0,0.00036163,2]
[339991348,1728289848686,-500.0,0.00036163,2]
[339991349,1728289848696,-500.0,0.00036163,2]
[339991350,1728289848705,-1162.29,0.00036163,2]
[339991351,1728289848715,-500.0,0.00036163,2]
[339991352,1728289848724,-337.14467942,0.00036163,2]
[339991353,1728289848734,-500.0,0.00036163,2]
[339991354,1728289848745,-522.74,0.00036163,2]
[339991355,1728289848755,-500.0,0.00036163,2]
[339991356,1728289848764,-501.42308716,0.00036163,2]
[339991357,1728289848773,-724.72,0.00036163,2]
[339991358,1728289848783,-590.34,0.00036163,2]
[339991359,1728289848793,-500.0,0.00036163,2]
[339991360,1728289848802,-543.83,0.00036163,2]
[339991361,1728289848816,-1754.61,0.00036163,2]
[339991362,1728289848825,-500.0,0.00036163,2]
[339991363,1728289848834,-257.84763406,0.00036163,2]
[339991364,1728289848844,-500.0,0.00036163,2]
[339991365,1728289848855,-500.0,0.00036163,2]
[339991366,1728289848866,-500.0,0.00036163,2]
[339991367,1728289848876,-663.74,0.00036163,2]
[339991368,1728289848887,-500.0,0.00036163,2]
[339991369,1728289848897,-678.45,0.00036163,2]
[339991370,1728289848907,-765.89,0.00036163,2]
[339991371,1728289848917,-635.42,0.00036163,2]
[339991372,1728289848928,-1136.61,0.00036163,2]
[339991373,1728289848938,-805.38,0.00036163,2]
[339991374,1728289848947,-1044.58,0.00036163,2]
[339991375,1728289848957,-1063.41,0.00036163,2]
[339991376,1728289848967,-398.31527188,0.00036163,2]
[339991377,1728289848977,-648.21440605,0.00036164,2]
[339991378,1728289848988,-500.0,0.00036164,2]
[339991379,1728289848998,-395.0,0.00036164,2]
[339991380,1728289849008,-500.0,0.00036164,2]
[339991381,1728289849018,-500.0,0.00036164,2]
[339991382,1728289849028,-196.83885426,0.00036228,2]
[339991383,1728289849038,-190.98665055,0.00036238,9]
[339991384,1728289849049,-30017.9557949,0.00036251,6]
[339991385,1728289849058,-168.65930083,0.00036251,2]
[339991386,1728289849068,-29999.99,0.00036261,30]
[339991387,1728289849078,-26031.64,0.00036261,2]
[339991388,1728289849087,-3497.65,0.00036261,2]
[339991389,1728289849097,-7504.48894872,0.00036263,6]
[339991390,1728289849107,-8858.2246437,0.00036263,6]
[339991391,1728289849118,-500.0,0.00036273,2]
[339991392,1728289849128,-727.93,0.00036273,2]
[339991393,1728289849138,-500.0,0.00036273,2]
[339991394,1728289849149,-1871.1981831,0.00036308,6]
[339991395,1728289849162,-5633.29076562,0.00036308,6]
[339991396,1728289849172,-17716.4492874,0.00036308,6]
[339991397,1728289849182,-44291.1232185,0.00036318,6]
[339991398,1728289849192,-30017.9557949,0.00036318,6]
[339991399,1728289849202,-142130.02009157,0.00036327,60]
[339991400,1728289849214,-12869.97990843,0.00036327,60]
[339991401,1728289849225,-28364.62969157,0.00036328,6]
[339991402,1728289849237,-40934.34,0.00036328,6]
[339991403,1728289849249,-25091.318,0.00036328,6]
[339991404,1728289849261,-3168.06864183,0.00036328,6]
[339991405,1728289849270,-128392.43029831,0.00036328,6]
[339991406,1728289849282,-57630.28721969,0.00036328,6]
[339991407,1728289849291,-500.0,0.00036342,120]
[339991408,1728289849301,-500.0,0.00036373,5]
[339991409,1728289849311,-500.0,0.00036426,2]
[339991410,1728289849321,-243.57978031,0.00036426,2]
[339991411,1728289849333,-256.42021969,0.00036426,2]
[339991412,1728289849342,-822.37,0.00036426,2]
[339991413,1728289849352,-859.49,0.00036426,2]
[339991414,1728289849361,-658.6,0.00036426,2]
[339991415,1728289849371,-795.73,0.00036426,2]
[339991416,1728289849380,-1424.68,0.00036426,7]
[339991417,1728289849390,-500.0,0.00036426,2]
[339991418,1728289849399,-700.08,0.00036426,2]
[339991419,1728289849408,-555.88,0.00036426,2]
[339991420,1728289849417,-671.84,0.00036426,2]
[339991421,1728289849427,-697.74,0.00036426,2]
[339991422,1728289849436,-318.28593571,0.00036426,2]
[339991423,1728290009717,159.54,0.00010959,2]
[339991424,1728290422823,380.16065888,0.00024,3]
[339991425,1728290469989,19848.56,0.00023,120]
[339991426,1728290470012,20000.0,0.00023,120]
[339991427,1728290470038,50000.0,0.00023,120]
[339991428,1728290501897,38624.0,0.00022,3]
[339991429,1728290535191,161.97,0.00010959,2]
[339991451,1728291032021,-379.0,0.000233,3]
[339991452,1728291032031,-234.91688692,0.00031603,2]
[339991453,1728291032043,-65.70311308,0.00031603,2]
[339991454,1728291032052,-554.8905,0.00032,2]
[339991455,1728291032061,-150.0,0.000321,2]
[339991456,1728291032070,-3805.74330957,0.00032287,2]
[339991457,1728291032082,-1368.22669043,0.00032287,2]
[339991458,1728291032090,-5669.91954105,0.00033445,2]
[339991459,1728291032101,-3300.0,0.00033445,2]
[339991460,1728291032113,-11.52045895,0.00033445,2]
[339991461,1728291032122,-1000.0,0.00033463,2]
[339991462,1728291032131,-30.02529813,0.00033463,120]
[339991463,1728291032142,-219.97470187,0.00033463,120]
[339991464,1728291032151,-102.11988046,0.00033463,2]
[339991465,1728291032162,-147.88011954,0.00033463,2]
[339991466,1728291032171,-3937.2,0.00033566,2]
[339991467,1728291032180,-250.0,0.00033569,2]
[339991468,1728291032189,-150.99,0.00033569,2]
[339991469,1728291032198,-23900.0,0.00033778,2]
[339991470,1728291032207,-277.57,0.00033781,2]
[339991471,1728291032216,-272.25,0.00033799,120]
[339991472,1728291032225,-150.0,0.00033847,2]
[339991473,1728291032234,-300.62,0.00033866,2]
[339991474,1728291032246,-1614.36,0.00033964,2]
[339991475,1728291032255,-752.5,0.00034035,2]
[339991476,1728291032264,-1119.75,0.00034037,2]
[339991477,1728291032273,-150.0,0.00034049,2]
[339991478,1728291032282,-499.99,0.00034412,2]
[339991479,1728291032291,-162.6,0.0003445,2]
[339991480,1728291032300,-150.0,0.00034799,2]
[339991481,1728291032309,-150.0,0.00034834,2]
[339991482,1728291032318,-150.0,0.00034869,2]
[339991483,1728291032327,-1029.3117,0.000349,2]
[339991484,1728291032336,-150.0,0.00034904,2]
[339991485,1728291032346,-150.0,0.00034938,2]
[339991486,1728291032355,-150.0,0.00034973,2]
[339991487,1728291032363,-25618.32805514,0.00035,25]
[339991488,1728291032375,-2492.05944,0.00035,25]
[339991489,1728291032386,-690.1828127,0.00035,25]
[339991490,1728291032397,-672.42886243,0.00035,25]
[339991495,1728291038054,-20527.00082973,0.00035,25]
[339991496,1728291038064,-50000.0,0.00035,35]
[339991497,1728291038073,-3628.38773178,0.00035033,15]
[339991498,1728291038082,-5990.4525378,0.00035133,2]
[339991499,1728291038091,-500.0,0.00035133,7]
[339991500,1728291038099,-500.0,0.00035133,7]
[339991501,1728291038109,-168.59162465,0.00035133,7]
[339991502,1728291038117,-412.45475629,0.00035133,7]
[339991503,1728291038127,-626.459,0.00035134,2]
[339991504,1728291038136,-811.829,0.00035134,2]
[339991505,1728291038145,-449.054,0.00035134,2]
[339991506,1728291038154,-1299.005,0.00035134,2]
[339991507,1728291038162,-557.025,0.00035134,2]
[339991508,1728291038171,-1913.256,0.00035134,2]
[339991509,1728291038180,-3366.509,0.00035134,2]
[339991510,1728291038189,-808.0,0.00035134,2]
[339991511,1728291038199,-1910.0,0.00035134,2]
[339991512,1728291038207,-150.664,0.00035134,2]
[339991513,1728291038216,-5885.224,0.00035134,2]
[339991514,1728291038225,-8925.722,0.00035134,2]
[339991515,1728291038235,-1149.579,0.00035134,2]
[339991516,1728291038247,-2490.0,0.00035608,2]
[339991517,1728291038256,-427.61,0.0003571,2]
[339991518,1728291038266,-691.25,0.00035878,2]
[339991519,1728291038275,-500.0,0.00035878,2]
[339991520,1728291038284,-500.0,0.00035878,2]
[339991521,1728291038292,-667.27,0.00035878,2]
[339991522,1728291038301,-500.0,0.00035878,2]
[339991523,1728291038310,-500.0,0.00035878,2]
[339991524,1728291038320,-575.22,0.00035878,2]
[339991525,1728291038330,-500.0,0.00035878,2]
[339991526,1728291038338,-500.0,0.00035878,2]
[339991527,1728291038347,-500.0,0.00035878,2]
[339991528,1728291038356,-500.0,0.00035888,2]
[339991529,1728291038365,-500.0,0.00035888,2]
[339991530,1728291038374,-1555.65,0.00035888,2]
[339991531,1728291038383,-733.17,0.00035888,2]
[339991532,1728291038392,-500.0,0.00035888,2]
[339991533,1728291038401,-500.0,0.00035888,2]
[339991534,1728291038410,-487.46047395,0.00035888,2]
[339991535,1728291038419,-500.0,0.00035888,2]
[339991536,1728291038429,-500.0,0.00035888,2]
[339991537,1728291038438,-500.0,0.00035888,2]
[339991538,1728291038448,-500.0,0.00035888,2]
[339991539,1728291038457,-500.0,0.00035888,2]
[339991541,1728291038466,-500.0,0.00035888,2]
[339991543,1728291038480,-500.0,0.00035888,2]
[339991545,1728291038489,-279.86432543,0.00035888,2]
[339991547,1728291038498,-500.0,0.00035888,2]
[339991549,1728291038507,-222.49833792,0.00035888,2]
[339991551,1728291038516,-500.0,0.00035888,2]
[339991553,1728291038525,-500.0,0.00035888,2]
[339991555,1728291038534,-500.0,0.00035889,2]
[339991557,1728291038543,-16533.3272151,0.0003599,6]
[339991559,1728291038553,-642.63,0.00035997,2]
[339991561,1728291038562,-593.7,0.00035997,2]
[339991562,1728291038571,-500.0,0.00035997,2]
[339991564,1728291038580,-500.0,0.00035997,2]
[339991566,1728291038590,-500.0,0.00035997,2]
[339991568,1728291038599,-627.26,0.00035997,2]
[339991570,1728291038609,-539.46,0.00035997,2]
[339991572,1728291038621,-500.0,0.00035997,2]
[339991574,1728291038630,-500.0,0.00035997,2]
[339991575,1728291038639,-682.03,0.00035997,2]
[339991576,1728291038647,-500.0,0.00035997,2]
[339991577,1728291038658,-500.0,0.00035998,2]
[339991578,1728291038667,-902.23,0.00035998,2]
[339991579,1728291038676,-500.0,0.00035998,2]
[339991580,1728291038685,-724.58,0.00035998,2]
[339991581,1728291038694,-500.0,0.00035998,2]
[339991582,1728291038703,-500.0,0.00035998,2]
[339991583,1728291038712,-500.0,0.00035998,2]
[339991584,1728291038721,-500.0,0.00035998,2]
[339991585,1728291038730,-500.0,0.00035998,2]
[339991586,1728291038739,-500.0,0.00035998,2]
[339991587,1728291038748,-283.08608194,0.00035998,2]
[339991588,1728291038757,-659.68,0.00035998,2]
[339991589,1728291038766,-500.0,0.00035998,2]
[339991590,1728291038775,-500.0,0.00035998,2]
[339991591,1728291038784,-609.75,0.00035998,2]
[339991592,1728291038793,-500.0,0.00035998,2]
[339991593,1728291038802,-500.0,0.00035998,2]
[339991594,1728291038811,-712.2,0.00035998,2]
[339991595,1728291038821,-609.06,0.00035998,2]
[339991596,1728291038830,-155.93700113,0.00035998,2]
[339991597,1728291038839,-562.02,0.00035999,2]
[339991598,1728291038848,-971.39,0.00035999,2]
[339991599,1728291038857,-2808.6,0.00035999,2]
[339991600,1728291038866,-150.0,0.00035999,2]
[339991601,1728291038875,-500.0,0.00035999,2]
[339991602,1728291038884,-702.07,0.00035999,2]
[339991603,1728291038893,-500.0,0.00035999,2]
[339991604,1728291038903,-528.86627558,0.00035999,2]
[339991605,1728291039021,-1065.44,0.00035999,2]
[339991606,1728291039035,-500.0,0.00035999,2]
[339991607,1728291039044,-500.0,0.00035999,2]
[339991608,1728291039054,-500.0,0.00035999,2]
[339991609,1728291039063,-500.0,0.00035999,2]
[339991610,1728291039072,-500.0,0.00035999,2]
[339991611,1728291039080,-664.33,0.00035999,2]
[339991612,1728291039090,-701.28,0.00035999,2]
[339991613,1728291039099,-541.15,0.00035999,2]
[339991614,1728291039108,-1608.39,0.00035999,2]
[339991615,1728291039117,-253.42322472,0.00035999,2]
[339991616,1728291039126,-500.0,0.00035999,2]
[339991617,1728291039135,-500.0,0.00035999,2]
[339991618,1728291039144,-500.0,0.00035999,2]
[339991619,1728291039153,-500.0,0.00035999,2]
[339991620,1728291039162,-719.58,0.00035999,2]
[339991621,1728291039170,-608.43,0.00035999,2]
[339991622,1728291039179,-500.0,0.00035999,2]
[339991623,1728291039188,-500.0,0.00035999,2]
[339991624,1728291039197,-621.91,0.00035999,2]
[339991625,1728291039206,-702.06,0.00035999,2]
[339991626,1728291039215,-752.05,0.00035999,2]
[339991627,1728291039224,-582.46,0.00035999,2]
[339991628,1728291039233,-1041.89,0.00035999,2]
[339991629,1728291039247,-576.27,0.00035999,2]
[339991630,1728291039256,-696.26,0.00035999,2]
[339991631,1728291039265,-1246.6,0.00035999,7]
[339991632,1728291039275,-738.26,0.00035999,2]
[339991633,1728291039283,-957.53,0.00035999,2]
[339991634,1728291039294,-612.57,0.00035999,2]
[339991635,1728291039303,-974.8,0.00035999,2]
[339991636,1728291039312,-500.0,0.00035999,2]
[339991637,1728291039322,-587.86,0.00035999,2]
[339991638,1728291039331,-610.53,0.00035999,2]
[339991639,1728291039340,-50000.0,0.00036,26]
[339991640,1728291039349,-50000.0,0.00036,36]
[339991641,1728291039358,-5511.10907171,0.00036052,6]
[339991642,1728291039367,-808.46061898,0.00036052,8]
[339991643,1728291039376,-358.75,0.00036111,2]
[339991644,1728291039385,-858.14,0.00036111,2]
[339991645,1728291039393,-358.75,0.00036111,2]
[339991646,1728291039403,-358.75,0.00036111,2]
[339991647,1728291039413,-358.75,0.00036111,2]
[339991648,1728291039422,-358.75,0.00036111,2]
[339991649,1728291039431,-358.75,0.00036111,2]
[339991650,1728291039441,-358.75,0.00036111,2]
[339991651,1728291039450,-358.75,0.00036111,2]
[339991652,1728291039459,-358.75,0.00036111,2]
[339991653,1728291039468,-358.75,0.00036111,2]
[339991654,1728291039477,-717.5,0.00036111,2]
[339991655,1728291039486,-3628.38773178,0.00036129,15]
[339991656,1728291039495,-300.62,0.0003613,2]
[339991657,1728291039505,-5511.10907171,0.00036142,6]
[339991658,1728291039515,-5511.10907171,0.00036152,6]
[339991659,1728291039523,-691.25,0.00036152,2]
[339991660,1728291039533,-500.0,0.00036152,2]
[339991661,1728291039542,-500.0,0.00036152,2]
[339991662,1728291039551,-667.27,0.00036152,2]
[339991663,1728291039560,-500.0,0.00036152,2]
[339991664,1728291039569,-319.40575743,0.00036152,2]
[339991665,1728291039578,-575.22,0.00036152,2]
[339991666,1728291039587,-500.0,0.00036152,2]
[339991667,1728291039596,-500.0,0.00036152,2]
[339991668,1728291039605,-197.61259466,0.00036152,2]
[339991669,1728291039615,-500.0,0.00036162,2]
[339991670,1728291039624,-500.0,0.00036162,2]
[339991671,1728291039633,-1555.65,0.00036162,2]
[339991672,1728291039642,-733.17,0.00036162,2]
[339991673,1728291039651,-500.0,0.00036162,2]
[339991674,1728291039661,-500.0,0.00036162,2]
[339991675,1728291039670,-500.0,0.00036162,2]
[339991676,1728291039679,-500.0,0.00036162,2]
[339991677,1728291039688,-455.94532459,0.00036162,2]
[339991678,1728291039697,-500.0,0.00036162,2]
[339991679,1728291039706,-500.0,0.00036162,2]
[339991680,1728291039716,-500.0,0.00036162,2]
[339991681,1728291039725,-607.82478244,0.00036162,2]
[339991682,1728291039733,-500.0,0.00036162,2]
[339991683,1728291039744,-500.0,0.00036162,2]
[339991684,1728291039757,-500.0,0.00036162,2]
[339991685,1728291039767,-504.72754705,0.00036163,2]
[339991686,1728291039776,-5511.10907171,0.00036262,6]
[339991688,1728291039786,-16533.3272151,0.00036263,6]
[339991689,1728291039798,-642.63,0.00036271,2]
[339991690,1728291039807,-593.7,0.00036271,2]
[339991691,1728291039821,-500.0,0.00036271,2]
[339991693,1728291039830,-500.0,0.00036271,2]
[339991695,1728291039839,-500.0,0.00036271,2]
[339991697,1728291039848,-627.26,0.00036271,2]
[339991699,1728291039858,-539.46,0.00036271,2]
[339991701,1728291039867,-500.0,0.00036271,2]
[339991702,1728291039876,-500.0,0.00036271,2]
[339991703,1728291039885,-682.03,0.00036271,2]
[339991704,1728291039894,-500.0,0.00036272,2]
[339991705,1728291039903,-902.23,0.00036272,2]
[339991706,1728291039912,-500.0,0.00036272,2]
[339991707,1728291039921,-724.58,0.00036272,2]
[339991708,1728291039930,-252.01738669,0.00036272,15]
[339991709,1728291039939,-500.0,0.00036272,2]
[339991710,1728291039948,-500.0,0.00036272,2]
[339991712,1728291039957,-527.93160613,0.00036272,2]
[339991714,1728291039966,-500.0,0.00036272,2]
[339991715,1728291039975,-500.0,0.00036272,2]
[339991716,1728291039984,-500.0,0.00036272,2]